bitfinex/quotes_ETHUSD_20230105
["timestamp","ask_amount","ask_price","bid_price","bid_amount"]
[1672944017463,3.59736459,1251.3,1251.2,27.34789838]
[1672944017675,2.9970563,1251.3,1251.2,35.34021838]
[1672944017847,5.39457369,1251.3,1251.2,35.34021838]
[1672944018264,2.9970563,1251.3,1251.2,35.34021838]
[1672944018682,2.9970563,1251.3,1251.2,27.34789838]
[1672944019435,2.9970563,1251.3,1251.2,3.37093838]
[1672944019641,3.59736459,1251.3,1251.2,0.0172298]
[1672944020099,2.99611714,1251.3,1251.2,8.0092898]
[1672944020265,2.99611714,1251.3,1251.2,8.1082898]
[1672944020474,2.99611714,1251.3,1251.2,16.1006098]
[1672944021061,2.99611714,1251.3,1251.2,8.1082898]
[1672944021247,2.99572536,1251.3,1251.2,8.10570552]
[1672944021469,3.66336459,1251.4,1251.2,16.09802552]
[1672944021683,2.99572637,1251.3,1251.2,8.10570552]
[1672944022285,2.99325183,1251.3,1251.2,8.10570552]
[1672944022599,2.99325183,1251.3,1251.2,16.09802552]
[1672944023025,2.99325183,1251.3,1251.2,8.10570552]
[1672944023236,2.99325183,1251.3,1251.2,16.09802552]
[1672944023680,11.65442459,1251.4,1251.2,8.10570552]
[1672944023844,22.21597109,1251.4,1251.2,8.10570552]
[1672944024052,3.59736459,1251.3,1251.2,8.10570552]
[1672944024257,3.59736459,1251.3,1251.2,0.11364552]
[1672944024537,3.59736459,1251.3,1251.2,0.01464552]
[1672944025442,11.58904459,1251.3,1251.2,0.01464552]
[1672944026905,3.59736459,1251.3,1251.2,0.01464552]
[1672944027121,3.66336459,1251.4,1251.2,23.99160552]
[1672944027456,3.66336459,1251.4,1251.2,8.10596552]
[1672944027457,11.58850459,1251.4,1251.2,8.10596552]
[1672944028913,3.59736459,1251.4,1251.2,16.09828552]
[1672944029242,2.99528043,1251.3,1251.2,16.09828552]
[1672944029633,3.66336459,1251.4,1251.2,16.09828552]
[1672944029882,2.99530227,1251.3,1251.2,16.09828552]
[1672944030062,2.99530351,1251.3,1251.2,16.09828552]
[1672944032668,2.99530351,1251.3,1251.2,8.10596552]
[1672944033108,2.99530351,1251.3,1251.2,16.09828552]
[1672944033990,3.66336459,1251.4,1251.2,16.09828552]
[1672944034210,7.03265509,1251.4,1251.2,16.09828552]
[1672944034512,10.53265509,1251.4,1251.2,8.10596552]
[1672944034730,7.03265509,1251.4,1251.2,8.10596552]
[1672944034996,7.03265509,1251.4,1251.2,16.09828552]
[1672944035166,3.59736459,1251.4,1251.2,24.09060552]
[1672944037868,2.99545614,1251.3,1251.2,24.09060552]
[1672944038852,2.99545614,1251.3,1251.2,32.08292552]
[1672944039164,3.66336459,1251.4,1251.2,24.09060552]
[1672944039314,5.39227748,1251.3,1251.2,32.08292552]
[1672944039528,5.39227748,1251.3,1251.2,29.35935831]
[1672944039529,2.39653208,1251.3,1251.2,29.35935831]
[1672944041114,2.39653208,1251.3,1251.2,37.35167831]
[1672944041843,3.06153717,1251.4,1251.2,37.96866742]
[1672944041844,5.45806925,1251.4,1251.2,37.96866742]
[1672944042053,2.39653208,1251.4,1251.3,31.96672]
[1672944042280,2.39653208,1251.4,1251.3,45.55602692]
[1672944042492,2.46253208,1251.5,1251.3,45.55602692]
[1672944042721,2.39653208,1251.5,1251.3,45.55602692]
[1672944043104,2.39653208,1251.5,1251.3,45.55303107]
[1672944043308,2.39653208,1251.5,1251.3,40.93287147]
[1672944043562,5.39206925,1251.5,1251.3,40.93287147]
[1672944043937,2.39653208,1251.4,1251.3,8.49407474]
[1672944044146,5.39206925,1251.4,1251.3,3.099]
[1672944044357,2.39653208,1251.4,1251.3,10.99165]
[1672944044606,2.39653208,1251.4,1251.3,19.08233]
[1672944044838,2.39653208,1251.4,1251.3,23.11728383]
[1672944047524,2.39653208,1251.4,1251.3,15.12560383]
[1672944048513,2.39653208,1251.4,1251.3,23.11728383]
[1672944048678,2.39653208,1251.4,1251.3,31.10896383]
[1672944049106,5.45806925,1251.5,1251.3,31.10896383]
[1672944049437,5.39206925,1251.5,1251.3,23.11728383]
[1672944049654,5.39206925,1251.5,1251.3,31.10896383]
[1672944051004,5.39206925,1251.5,1251.3,23.11728383]
[1672944051416,21.37320925,1251.5,1251.3,7.13395383]
[1672944051990,2.39653208,1251.4,1251.3,7.13395383]
[1672944053714,2.39653208,1251.4,1251.3,15.12563383]
[1672944054158,2.39653208,1251.4,1251.3,7.13395383]
[1672944055214,5.39206925,1251.4,1251.3,3.099]
[1672944055560,2.39653208,1251.4,1251.3,3.0]
[1672944055757,2.39653208,1251.4,1251.3,10.99168]
[1672944055926,5.39206925,1251.4,1251.3,11.09068]
[1672944056661,5.39206925,1251.4,1251.3,3.099]
[1672944056877,5.39206925,1251.4,1251.3,3.0]
[1672944058576,2.39653208,1251.4,1251.3,10.99168]
[1672944058953,2.39653208,1251.4,1251.3,19.08236]
[1672944059240,5.45806925,1251.5,1251.3,39.10071083]
[1672944059459,2.39653208,1251.4,1251.3,39.10071083]
[1672944059621,2.99553717,1251.5,1251.3,39.10071083]
[1672944059622,5.45806925,1251.5,1251.3,39.10071083]
[1672944059817,5.39206925,1251.5,1251.3,39.10071083]
[1672944060281,2.39653208,1251.4,1251.3,39.10071083]
[1672944061125,5.45806925,1251.5,1251.3,39.10071083]
[1672944061337,5.45806925,1251.5,1251.3,35.06572]
[1672944061338,2.39653208,1251.5,1251.3,35.06572]
[1672944061831,5.39206925,1251.5,1251.3,35.06572]
[1672944063709,2.39653208,1251.5,1251.3,35.06572]
[1672944063936,2.39653208,1251.5,1251.3,35.06245095]
[1672944066073,5.39206925,1251.5,1251.3,27.07077095]
[1672944066437,2.39653208,1251.4,1251.3,27.07077095]
[1672944066672,2.39653208,1251.4,1251.3,31.10541788]
[1672944067965,5.45806925,1251.5,1251.3,31.10541788]
[1672944068284,5.39206925,1251.5,1251.3,27.07077095]
[1672944068807,5.39206925,1251.5,1251.3,35.06245095]
[1672944070489,5.39206925,1251.5,1251.3,27.07077095]
[1672944070636,2.39653208,1251.4,1251.3,27.07077095]
[1672944070849,5.45806925,1251.5,1251.3,27.07077095]
[1672944071062,5.39206925,1251.5,1251.3,27.07077095]
[1672944072171,5.39206925,1251.5,1251.3,35.06245095]
[1672944072573,5.39206925,1251.5,1251.3,27.07077095]
[1672944072899,5.39206925,1251.5,1251.3,35.06245095]
[1672944074232,5.39206925,1251.5,1251.3,39.09703588]
[1672944074463,2.39653208,1251.5,1251.3,39.09703588]
[1672944074673,5.39206925,1251.5,1251.3,39.09703588]
[1672944076378,5.39206925,1251.5,1251.3,31.10535588]
[1672944076581,5.39206925,1251.5,1251.3,27.07077095]
[1672944076754,5.39206925,1251.5,1251.3,35.06245095]
[1672944077314,2.39653208,1251.4,1251.3,27.07077095]
[1672944078682,2.39653208,1251.4,1251.3,35.06245095]
[1672944078850,2.39653208,1251.4,1251.3,39.09703588]
[1672944079272,2.39653208,1251.4,1251.3,31.10535588]
[1672944079673,2.39653208,1251.4,1251.3,39.09703588]
[1672944080144,2.39653208,1251.4,1251.3,31.10535588]
[1672944082143,5.39206925,1251.4,1251.3,31.10535588]
[1672944082335,5.39206925,1251.4,1251.3,27.07077095]
[1672944083669,5.39206925,1251.4,1251.3,35.06245095]
[1672944084710,5.39206925,1251.4,1251.3,27.07077095]
[1672944085248,5.39206925,1251.4,1251.3,27.06817523]
[1672944085396,2.39653208,1251.4,1251.3,27.06817523]
[1672944086186,2.39653208,1251.4,1251.3,35.05985523]
[1672944086400,2.39653208,1251.4,1251.3,39.09418058]
[1672944086772,2.39653208,1251.4,1251.3,31.10250058]
[1672944087547,2.39653208,1251.4,1251.3,39.09418058]
[1672944087760,2.39653208,1251.4,1251.3,31.10250058]
[1672944089933,2.39653208,1251.4,1251.3,39.09418058]
[1672944094059,2.39653208,1251.4,1251.3,31.10250058]
[1672944094932,2.39653208,1251.4,1251.3,7.12746058]
[1672944095145,2.39653208,1251.4,1251.3,27.06817523]
[1672944095458,2.39653208,1251.4,1251.3,35.05985523]
[1672944096643,5.3932344,1251.4,1251.3,35.05985523]
[1672944097166,5.3932344,1251.4,1251.3,27.06817523]
[1672944098643,5.3932344,1251.4,1251.3,35.05985523]
[1672944100846,5.3932344,1251.4,1251.3,27.06817523]
[1672944103468,2.99670232,1251.4,1251.3,27.06817523]
[1672944105885,2.99670232,1251.4,1251.3,27.06537651]
[1672944107313,5.39501224,1251.4,1251.3,27.06537651]
[1672944108292,2.99670232,1251.4,1251.3,27.06537651]
[1672944109499,5.39503587,1251.4,1251.3,27.06537651]
[1672944115940,5.39503587,1251.4,1251.3,26.06537651]
[1672944116678,2.3984275,1251.4,1251.3,26.06537651]
[1672944116894,5.39512982,1251.4,1251.3,26.06537651]
[1672944117091,2.3984275,1251.4,1251.3,33.9885745]
[1672944117301,0.066,1251.5,1251.4,4.58821324]
[1672944117568,3.05870232,1251.7,1251.4,42.27448982]
[1672944117778,3.05870232,1251.7,1251.6,31.95908]
[1672944117779,2.99670232,1251.7,1251.6,31.95908]
[1672944117953,2.99670232,1251.7,1251.6,36.0147918]
[1672944119410,3.06270232,1251.8,1251.6,36.0147918]
[1672944119615,2.99670232,1251.8,1251.6,36.0147918]
[1672944122401,2.32e-06,1251.8,1251.6,44.61197927]
[1672944122629,0.16607713,1251.9,1251.7,3.98914951]
[1672944122949,0.16607713,1251.9,1251.8,23.96547]
[1672944123258,0.16607713,1251.9,1251.8,24.06447]
[1672944124050,0.16607713,1251.9,1251.8,16.07598]
[1672944124940,0.16607713,1251.9,1251.8,24.06447]
[1672944125253,0.16607713,1251.9,1251.8,28.11955847]
[1672944125737,0.16607713,1251.9,1251.8,33.20957853]
[1672944125906,0.16607713,1251.9,1251.8,36.58312105]
[1672944126270,0.16607713,1251.9,1251.8,41.19806853]
[1672944126482,0.16607713,1251.9,1251.8,36.58312105]
[1672944126937,0.16607713,1251.9,1251.8,40.57227056]
[1672944129147,0.16607713,1251.9,1251.8,43.57227056]
[1672944129549,0.16607713,1251.9,1251.8,35.58378056]
[1672944130207,0.16607713,1251.9,1251.8,43.57227056]
[1672944142927,0.16607713,1251.9,1251.8,43.56933629]
[1672944143767,0.16607713,1251.9,1251.8,31.59169678]
[1672944143979,0.16607713,1251.9,1251.8,3.57407258]
[1672944144192,0.16607713,1251.9,1251.8,3.47507258]
[1672944144769,0.16607713,1251.9,1251.8,11.46356258]
[1672944144985,0.16607713,1251.9,1251.8,11.56256258]
[1672944145199,0.16607713,1251.9,1251.8,19.55105258]
[1672944145527,0.16607713,1251.9,1251.8,3.57407258]
[1672944145741,0.16607713,1251.9,1251.8,3.47507258]
[1672944146365,0.16607713,1251.9,1251.8,3.0]
[1672944146578,0.16607713,1251.9,1251.7,46.26137]
[1672944146792,0.16607713,1251.9,1251.7,50.25051951]
[1672944148089,0.16607713,1251.9,1251.7,22.2952]
[1672944148256,8.15392713,1251.9,1251.7,30.28402]
[1672944148467,13.87196602,1251.9,1251.7,30.28402]
[1672944149557,13.87196602,1251.9,1251.8,1.21780919]
[1672944150402,5.88411602,1251.9,1251.8,1.21780919]
[1672944150608,3.15133305,1251.9,1251.8,1.21780919]
[1672944155411,3.76211991,1251.9,1251.8,1.21780919]
[1672944157664,3.76211991,1251.9,1251.8,9.20629919]
[1672944157989,3.76211991,1251.9,1251.8,1.31680919]
[1672944158207,3.76211991,1251.9,1251.8,1.21780919]
[1672944160274,30.99885661,1251.9,1251.8,1.21780919]
[1672944161058,31.00085661,1251.9,1251.8,1.21780919]
[1672944161376,30.99885661,1251.9,1251.8,1.21780919]
[1672944162059,23.01100661,1251.9,1251.8,1.21780919]
[1672944162415,35.39066383,1251.9,1251.8,1.21780919]
[1672944162628,40.18450421,1251.9,1251.8,1.21780919]
[1672944162773,40.66306346,1251.9,1251.8,1.21780919]
[1672944163426,45.66306346,1251.9,1251.8,1.21780919]
[1672944163785,45.66306346,1251.9,1251.4,44.99057]
[1672944163786,3.5,1251.8,1251.4,46.89533313]
[1672944163949,2.99353578,1251.6,1251.4,46.89533313]
[1672944164168,3.05953578,1251.7,1251.4,46.89533313]
[1672944164411,2.99353578,1251.7,1251.4,38.90456313]
[1672944164782,2.99353578,1251.7,1251.4,46.89561313]
[1672944165616,0.05,1251.5,1251.4,46.89561313]
[1672944165833,2.99353578,1251.7,1251.4,57.86977684]
[1672944166093,2.99353578,1251.7,1251.4,46.89561313]
[1672944166094,10.98268578,1251.7,1251.4,46.89561313]
[1672944166411,2.99353578,1251.7,1251.4,46.89561313]
[1672944168071,2.99353578,1251.7,1251.4,46.89281592]
[1672944168530,2.99353578,1251.7,1251.4,54.88386592]
[1672944168665,2.99353578,1251.7,1251.4,62.85802963]
[1672944174084,2.99353578,1251.7,1251.4,54.86697963]
[1672944174240,2.99353578,1251.6,1251.4,19.38746313]
[1672944174459,2.99353578,1251.6,1251.4,11.39686313]
[1672944174460,7.99041,1251.5,1251.4,11.39686313]
[1672944174872,7.99041,1251.5,1251.4,2.00376313]
[1672944175220,7.99041,1251.5,1251.4,1.90476313]
[1672944175433,19.03947578,1251.6,1251.4,1.90476313]
[1672944175618,31.12191065,1251.6,1251.4,1.90476313]
[1672944175833,23.13179065,1251.6,1251.4,1.90476313]
[1672944176046,31.12195065,1251.6,1251.4,1.90476313]
[1672944178034,23.13179065,1251.6,1251.4,1.90476313]
[1672944178654,23.13179065,1251.6,1251.4,9.89578313]
[1672944178918,23.13179065,1251.6,1251.4,9.99478313]
[1672944179280,23.13179065,1251.6,1251.4,2.00376313]
[1672944179662,23.13179065,1251.6,1251.4,1.90476313]
[1672944180018,7.15183065,1251.6,1251.4,9.89579313]
[1672944180230,11.16963578,1251.7,1251.4,33.96794313]
[1672944180492,11.10363578,1251.7,1251.4,25.97689313]
[1672944186064,2.99353578,1251.6,1251.4,25.97689313]
[1672944192412,2.99353578,1251.6,1251.4,25.9742747]
[1672944201898,2.99353578,1251.5,1251.4,17.9832247]
[1672944202166,7.98979,1251.6,1251.4,17.9832247]
[1672944202167,3.05953578,1251.6,1251.4,17.9832247]
[1672944202318,2.99353578,1251.5,1251.4,17.9832247]
[1672944203262,2.99353578,1251.5,1251.4,9.9921747]
[1672944203467,2.99353578,1251.5,1251.4,2.0011447]
[1672944203737,2.99353578,1251.5,1251.4,1.9021447]
[1672944204061,2.99353578,1251.5,1251.4,9.8931947]
[1672944204243,2.99353578,1251.5,1251.4,2.0011447]
[1672944204458,2.99353578,1251.5,1251.4,1.9021447]
[1672944204837,2.99353578,1251.5,1251.4,17.8842447]
[1672944205083,2.99353578,1251.5,1251.4,17.9832447]
[1672944208331,2.99353578,1251.5,1251.4,9.9921947]
[1672944208683,2.99353578,1251.5,1251.4,17.9832447]
[1672944210763,2.99353578,1251.5,1251.4,25.9742947]
[1672944216187,9.0129558,1251.5,1251.4,2.0011447]
[1672944216529,9.0129558,1251.5,1251.4,1.9021447]
[1672944217296,9.0129558,1251.5,1251.4,1.89937913]
[1672944217506,9.0129558,1251.5,1251.3,2.01065162]
[1672944217507,28.58601874,1251.5,1251.3,2.01065162]
[1672944217698,2.99759406,1251.4,1251.3,1.91165162]
[1672944217938,26.97074406,1251.4,1251.3,1.91165162]
[1672944218291,30.72375422,1251.4,1251.3,1.91165162]
[1672944218428,22.73270422,1251.4,1251.3,1.91165162]
[1672944219803,27.13556656,1251.4,1251.3,1.91165162]
[1672944220700,35.12661656,1251.4,1251.3,1.91165162]
[1672944223917,27.13556656,1251.4,1251.3,1.91165162]
[1672944225280,19.14451656,1251.4,1251.3,1.91165162]
[1672944226077,27.13556656,1251.4,1251.3,1.91165162]
[1672944226239,35.12661656,1251.4,1251.3,1.91165162]
[1672944227440,30.12661656,1251.4,1251.3,1.91165162]
[1672944227773,30.72375422,1251.4,1251.3,1.91165162]
[1672944227911,43.71480422,1251.4,1251.3,1.91165162]
[1672944228125,35.72375422,1251.4,1251.3,1.91165162]
[1672944228806,32.13151128,1251.4,1251.3,1.91165162]
[1672944229034,35.12329647,1251.4,1251.3,1.91165162]
[1672944231210,27.13224647,1251.4,1251.3,1.91165162]
[1672944231582,19.14119647,1251.4,1251.3,1.91165162]
[1672944232746,27.13224647,1251.4,1251.3,1.91165162]
[1672944233212,35.12329647,1251.4,1251.3,1.91165162]
[1672944233433,35.11996133,1251.4,1251.3,1.91165162]
[1672944236213,27.12891133,1251.4,1251.3,1.91165162]
[1672944236434,35.11996133,1251.4,1251.3,1.91165162]
[1672944237717,27.12891133,1251.4,1251.3,1.91165162]
[1672944238747,35.11996133,1251.4,1251.3,1.91165162]
[1672944239007,27.12891133,1251.4,1251.3,1.91165162]
[1672944239363,22.12891133,1251.4,1251.3,1.91165162]
[1672944240412,19.13786133,1251.4,1251.3,1.91165162]
[1672944242203,27.12891133,1251.4,1251.3,1.91165162]
[1672944242409,19.13786133,1251.4,1251.3,1.91165162]
[1672944242667,27.12891133,1251.4,1251.3,1.91165162]
[1672944243886,35.11996133,1251.4,1251.3,1.91165162]
[1672944244427,11.15014647,1251.4,1251.3,1.91165162]
[1672944244836,19.14119647,1251.4,1251.3,1.91165162]
[1672944245355,15.98283519,1251.4,1251.3,1.91165162]
[1672944246956,31.96493519,1251.4,1251.3,1.91165162]
[1672944247791,26.96493519,1251.4,1251.3,1.91165162]
[1672944248827,31.96493519,1251.4,1251.3,1.91165162]
[1672944252251,31.96698793,1251.4,1251.3,1.91165162]
[1672944253342,36.4908026,1251.4,1251.3,1.91165162]
[1672944254044,33.49696467,1251.4,1251.3,1.91165162]
[1672944254743,36.49197483,1251.4,1251.3,1.91165162]
[1672944254953,31.49197483,1251.4,1251.3,1.91165162]
[1672944255493,31.49197483,1251.4,1251.3,1.90952709]
[1672944255914,37.08920761,1251.4,1251.3,1.90952709]
[1672944257595,29.09815761,1251.4,1251.3,1.90952709]
[1672944261262,21.10710761,1251.4,1251.3,1.90952709]
[1672944261941,29.09815761,1251.4,1251.3,1.90952709]
[1672944264303,21.10710761,1251.4,1251.3,1.90952709]
[1672944264655,8.59224294,1251.4,1251.3,17.89288709]
[1672944264974,8.59224294,1251.4,1251.3,17.99188709]
[1672944265564,8.59224294,1251.4,1251.3,2.00852709]
[1672944265779,8.59224294,1251.4,1251.3,1.90952709]
[1672944266387,8.59224294,1251.4,1251.3,25.88456709]
[1672944266664,8.59224294,1251.4,1251.3,25.98356709]
[1672944266901,8.59224294,1251.4,1251.3,10.00020709]
[1672944267025,12.67139874,1251.5,1251.3,2.00852709]
[1672944267235,20.59600874,1251.5,1251.3,1.90952709]
[1672944267483,3.59224294,1251.4,1251.3,1.90952709]
[1672944267671,11.58329294,1251.4,1251.3,1.90952709]
[1672944274072,16.58329294,1251.4,1251.3,1.90952709]
[1672944274492,8.59224294,1251.4,1251.3,1.90952709]
[1672944275960,16.58329294,1251.4,1251.3,1.90952709]
[1672944277018,36.95223029,1251.4,1251.3,1.90952709]
[1672944277502,32.75788991,1251.4,1251.3,1.90952709]
[1672944279200,36.35552761,1251.4,1251.3,1.90952709]
[1672944279801,36.35552761,1251.4,1251.3,1.90646104]
[1672944281334,28.36447761,1251.4,1251.3,1.90646104]
[1672944281598,20.37342761,1251.4,1251.3,1.90646104]
[1672944282532,12.38237761,1251.4,1251.3,1.90646104]
[1672944282742,8.5976377,1251.4,1251.3,1.90646104]
[1672944282973,3.5976377,1251.4,1251.3,1.90646104]
[1672944283297,8.5976377,1251.4,1251.3,1.90646104]
[1672944287247,8.59433737,1251.4,1251.3,1.90646104]
[1672944287463,16.58538737,1251.4,1251.3,1.90646104]
[1672944287675,20.37036273,1251.4,1251.3,1.90646104]
[1672944288269,16.58538737,1251.4,1251.3,1.90646104]
[1672944289327,11.58538737,1251.4,1251.3,1.90646104]
[1672944290531,19.57643737,1251.4,1251.3,1.90646104]
[1672944292747,27.56748737,1251.4,1251.3,1.90646104]
[1672944294082,19.57643737,1251.4,1251.3,1.90646104]
[1672944294714,11.58538737,1251.4,1251.3,1.90646104]
[1672944295353,3.59433737,1251.4,1251.3,1.90646104]
[1672944295573,3.59633737,1251.4,1251.3,1.90646104]
[1672944295791,3.59433737,1251.4,1251.3,1.90646104]
[1672944296449,3.59433737,1251.4,1251.3,9.89814104]
[1672944296685,3.59433737,1251.4,1251.3,9.99714104]
[1672944300671,19.64156737,1251.5,1251.3,9.99714104]
[1672944300847,23.10053234,1251.5,1251.3,9.99714104]
[1672944301672,2.99762302,1251.4,1251.3,9.99714104]
[1672944301886,2.99762302,1251.4,1251.3,25.98050104]
[1672944302157,2.99762302,1251.4,1251.3,17.98882104]
[1672944302360,3.66033737,1251.5,1251.3,17.98882104]
[1672944302674,2.99763571,1251.4,1251.3,17.98882104]
[1672944303509,2.99763571,1251.4,1251.3,22.6715517]
[1672944304042,2.99763571,1251.4,1251.3,30.6632317]
[1672944304821,2.99763571,1251.4,1251.3,22.6715517]
[1672944304822,3.59433737,1251.4,1251.3,22.6715517]
[1672944305507,3.59633737,1251.4,1251.3,22.6685517]
[1672944305696,3.59433737,1251.4,1251.3,22.6715517]
[1672944306318,3.59433737,1251.4,1251.3,14.6798717]
[1672944306510,3.59433737,1251.4,1251.3,6.6881917]
[1672944306723,3.59433737,1251.4,1251.3,2.00546104]
[1672944306924,3.59433737,1251.4,1251.3,1.90646104]
[1672944307457,27.56748737,1251.4,1251.3,1.90646104]
[1672944309444,19.57643737,1251.4,1251.3,1.90646104]
[1672944309650,27.56748737,1251.4,1251.3,1.90646104]
[1672944309864,27.56948737,1251.4,1251.3,1.90646104]
[1672944310074,27.56748737,1251.4,1251.3,1.90646104]
[1672944310554,11.58538737,1251.4,1251.3,1.90646104]
[1672944310890,3.59433737,1251.4,1251.3,1.90340129]
[1672944311605,11.58538737,1251.4,1251.3,1.90340129]
[1672944311827,15.11811015,1251.4,1251.3,1.90340129]
[1672944315830,7.12706015,1251.4,1251.3,1.90340129]
[1672944318504,23.10916015,1251.4,1251.3,1.90340129]
[1672944319382,31.10021015,1251.4,1251.3,1.90340129]
[1672944321189,27.50587278,1251.4,1251.3,1.90340129]
[1672944323621,31.10293575,1251.4,1251.3,1.90340129]
[1672944323907,15.12083575,1251.4,1251.3,1.90340129]
[1672944325764,23.11188575,1251.4,1251.3,1.90340129]
[1672944326019,23.11388575,1251.4,1251.3,1.90340129]
[1672944326240,23.11188575,1251.4,1251.3,1.90340129]
[1672944326617,15.12083575,1251.4,1251.3,1.90340129]
[1672944330121,7.12978575,1251.4,1251.3,1.90340129]
[1672944331019,15.12083575,1251.4,1251.3,1.90340129]
[1672944331438,15.12083575,1251.4,1251.3,1.90111785]
[1672944331915,7.12978575,1251.4,1251.3,1.90111785]
[1672944332123,3.53272278,1251.4,1251.3,1.90111785]
[1672944333193,7.12978575,1251.4,1251.3,1.90111785]
[1672944339999,15.12083575,1251.4,1251.3,1.90111785]
[1672944341350,7.12978575,1251.4,1251.3,1.90111785]
[1672944341895,3.59706297,1251.4,1251.3,1.90111785]
[1672944342208,3.59706297,1251.4,1251.3,9.89279785]
[1672944342412,3.59706297,1251.4,1251.3,9.99179785]
[1672944344208,3.59706297,1251.4,1251.3,2.00011785]
[1672944344419,3.59706297,1251.4,1251.3,1.90111785]
[1672944344981,5.98093631,1251.4,1251.3,1.90111785]
[1672944348416,13.97198631,1251.4,1251.3,1.90111785]
[1672944349505,5.98093631,1251.4,1251.3,1.90111785]
[1672944350096,5.98093631,1251.4,1251.3,9.89279785]
[1672944350423,5.98093631,1251.4,1251.3,9.99179785]
[1672944350725,5.98093631,1251.4,1251.3,2.00011785]
[1672944350940,5.98093631,1251.4,1251.3,1.90111785]
[1672944351840,5.98093631,1251.4,1251.3,1.8990382]
[1672944353753,5.98093631,1251.4,1251.3,17.8823982]
[1672944353959,3.59706297,1251.4,1251.3,17.9813982]
[1672944354423,2.99751442,1251.4,1251.3,33.9647582]
[1672944354823,2.99751442,1251.4,1251.3,25.9730782]
[1672944355212,2.99751442,1251.4,1251.3,33.9647582]
[1672944358696,2.99751442,1251.4,1251.3,25.9730782]
[1672944365312,3.59706297,1251.4,1251.3,1.9980382]
[1672944365468,3.59706297,1251.4,1251.3,1.8990382]
[1672944365469,20.74451527,1251.4,1251.3,1.8990382]
[1672944366848,11.58811297,1251.4,1251.3,1.8990382]
[1672944367175,27.63525297,1251.5,1251.3,1.8990382]
[1672944367367,19.57836297,1251.5,1251.3,1.8990382]
[1672944368456,19.57836297,1251.5,1251.3,9.8907082]
[1672944368668,19.57836297,1251.5,1251.3,1.9980382]
[1672944368981,19.57836297,1251.5,1251.3,1.8990382]
[1672944368982,31.07466131,1251.5,1251.3,1.8990382]
[1672944369326,3.59706297,1251.4,1251.3,1.8990382]
[1672944369539,3.59706297,1251.4,1251.3,9.8906782]
[1672944369712,3.59706297,1251.4,1251.3,9.9896782]
[1672944370371,5.53239014,1251.4,1251.3,1.9980382]
[1672944370706,21.51449014,1251.4,1251.3,1.8990382]
[1672944371700,13.52344014,1251.4,1251.3,1.8990382]
[1672944374472,5.53239014,1251.4,1251.3,1.8990382]
[1672944375462,9.03239014,1251.4,1251.3,1.89562043]
[1672944375677,5.53239014,1251.4,1251.3,1.89562043]
[1672944376579,13.52344014,1251.4,1251.3,1.89562043]
[1672944377729,5.53239014,1251.4,1251.3,1.89562043]
[1672944380397,5.53239014,1251.4,1251.3,9.88730043]
[1672944380536,5.53239014,1251.4,1251.3,9.98630043]
[1672944382056,13.52344014,1251.4,1251.3,1.99462043]
[1672944382281,13.52344014,1251.4,1251.3,1.89562043]
[1672944382643,5.53239014,1251.4,1251.3,1.89562043]
[1672944383221,5.53239014,1251.4,1251.3,9.88730043]
[1672944383455,1.93532717,1251.4,1251.3,9.98630043]
[1672944386121,5.53239014,1251.4,1251.3,9.98630043]
[1672944388384,5.53439014,1251.4,1251.3,1.99162043]
[1672944388542,5.53239014,1251.4,1251.3,1.89562043]
[1672944390346,1.93532717,1251.4,1251.3,17.87898043]
[1672944390534,2.99629394,1251.4,1251.3,17.97798043]
[1672944392116,7.16847131,1251.5,1251.3,17.97798043]
[1672944392329,7.10247131,1251.5,1251.3,17.97798043]
[1672944393634,2.99635402,1251.4,1251.3,17.97798043]
[1672944393974,2.99634136,1251.4,1251.3,25.96966043]
[1672944396471,2.99650495,1251.4,1251.3,25.96966043]
[1672944396630,2.99650495,1251.4,1251.3,17.97798043]
[1672944397259,2.99650495,1251.4,1251.3,25.96966043]
[1672944397948,2.99650495,1251.4,1251.3,25.96668194]
[1672944399179,2.99650495,1251.4,1251.3,17.97500194]
[1672944399398,2.99650495,1251.4,1251.3,25.96668194]
[1672944399814,2.99650495,1251.4,1251.3,17.97500194]
[1672944400431,3.66306297,1251.5,1251.3,17.97500194]
[1672944400788,3.59706297,1251.5,1251.3,17.97500194]
[1672944400999,19.57796297,1251.5,1251.3,1.99164194]
[1672944401150,24.68137931,1251.5,1251.3,1.89264194]
[1672944401798,3.59706297,1251.4,1251.3,1.89264194]
[1672944402154,24.74737931,1251.5,1251.3,1.89264194]
[1672944402466,24.68137931,1251.5,1251.3,1.89264194]
[1672944402687,24.68137931,1251.5,1251.3,9.88427194]
[1672944402853,24.68137931,1251.5,1251.3,9.98327194]
[1672944403210,16.69092931,1251.5,1251.3,9.98327194]
[1672944404370,24.68152931,1251.5,1251.3,1.99164194]
[1672944404553,2.99744454,1251.4,1251.3,1.89264194]
[1672944404722,24.74752931,1251.5,1251.3,1.89264194]
[1672944404932,3.59706297,1251.4,1251.3,1.89264194]
[1672944405144,3.59706297,1251.4,1251.3,9.88432194]
[1672944405391,3.59706297,1251.4,1251.3,1.99164194]
[1672944405606,3.59706297,1251.4,1251.3,1.89264194]
[1672944406236,27.63485297,1251.5,1251.3,1.89264194]
[1672944406446,23.08359231,1251.5,1251.3,1.89264194]
[1672944406725,2.99740799,1251.4,1251.3,9.88410194]
[1672944406867,2.99740799,1251.4,1251.3,9.98310194]
[1672944407086,11.65351297,1251.5,1251.3,9.98310194]
[1672944407319,2.99741601,1251.4,1251.3,9.98310194]
[1672944407660,2.99740969,1251.4,1251.3,9.98310194]
[1672944408678,3.59706297,1251.4,1251.3,9.98310194]
[1672944408898,3.59706297,1251.4,1251.3,9.98332194]
[1672944409504,3.59706297,1251.4,1251.3,1.99164194]
[1672944409713,3.59706297,1251.4,1251.3,1.89264194]
[1672944413874,3.59706297,1251.4,1251.3,1.39932025]
[1672944415614,3.59467076,1251.4,1251.3,1.39932025]
[1672944416755,11.58572076,1251.4,1251.3,1.39932025]
[1672944417749,3.59467076,1251.4,1251.3,1.39932025]
[1672944423372,3.59467076,1251.4,1251.3,9.39100025]
[1672944423584,3.59467076,1251.4,1251.3,9.49000025]
[1672944424157,3.59467076,1251.4,1251.3,17.48168025]
[1672944424585,3.66067076,1251.5,1251.3,17.48168025]
[1672944424895,7.09977487,1251.5,1251.3,17.48168025]
[1672944425212,2.99760384,1251.4,1251.3,25.47336025]
[1672944429093,3.59467076,1251.4,1251.3,25.47336025]
[1672944429305,7.16067076,1251.5,1251.3,25.47336025]
[1672944429479,3.59467076,1251.4,1251.3,25.47336025]
[1672944429687,2.99723082,1251.4,1251.3,25.47336025]
[1672944429901,2.99723082,1251.4,1251.3,9.49000025]
[1672944429902,3.59467076,1251.4,1251.3,9.49000025]
[1672944430248,3.59467076,1251.4,1251.3,1.49832025]
[1672944430463,3.59467076,1251.4,1251.3,1.39932025]
[1672944436717,11.65125076,1251.5,1251.3,9.39100025]
[1672944436926,11.58525076,1251.5,1251.3,9.49000025]
[1672944437575,19.57581076,1251.5,1251.3,1.49832025]
[1672944437820,19.57581076,1251.5,1251.3,1.39932025]
[1672944438351,2.99716563,1251.4,1251.3,1.39932025]
[1672944439092,2.99716563,1251.4,1251.3,9.39100025]
[1672944439228,2.99716563,1251.4,1251.3,14.12201483]